[Event "2nd Serbia Open Masters 2022"]
[Site "Novi Sad"]
[Date "2022.06.29"]
[Round "2.2"]
[White "Ivic, Velimir"]
[Black "Risteski, Emil"]
[Result "1/2-1/2"]
[ECO "B45"]
[WhiteElo "2623"]
[BlackElo "2391"]
[Annotator "TA"]
[PlyCount "110"]
[EventDate "2022.06.28"]
[EventType "swiss"]
[EventCountry "SRB"]
[SourceTitle "playchess.com"]
[Source "ChessBase"]
[SourceQuality "1"]
[TimeControl "40/5400+30:900+30"]

{[%evp 12,110,10,13,9,20,16,12,36,27,31,38,31,20,45,42,42,13,69,22,26,15,9,22,24,16,8,16,21,12,47,47,56,56,56,56,57,58,62,49,49,31,45,41,50,47,70,66,70,70,70,62,70,57,86,54,70,56,85,49,100,100,100,100,100,100,100,100,121,72,137,137,144,138,147,67,77,43,43,50,76,56,66,17,16,8,8,0,0,0,0,0,8,8,10,10,11,11,24,24,47]} 1. e4 {[%emt 0:00:05]} c5 {[%emt 0:01:32]} 2. Nf3 {[%emt 0:00:10]} e6 {[%emt 0:00:18]} 3. d4 {[%emt 0:00:32]} cxd4 {[%emt 0:00:06]} 4. Nxd4 {[%emt 0:00:05]} Nf6 {[%emt 0:00:06]} 5. Nc3 {[%emt 0:00:05]} Nc6 {[%emt 0:00:04]} 6. a3 {[%emt 0:01:09]} d6 {[%emt 0:03:33]} 7. Be3 $1 {[%emt 0:00:26][%mdl 4] now scores much better than the old 7.Be2.} Be7 {[%emt 0:01:22] B45: Sicilian Four Knights.} 8. Qe2 {[%emt 0:00:28]} Nxd4 {[%emt 0:04:11]} 9. Bxd4 {[%emt 0:00:06]} e5 {[%emt 0:00:18] The position is equal.} 10. Be3 {[%emt 0:00:09]} O-O {[%emt 0:00:27]} 11. O-O-O {[%emt 0:01:29]} Be6 {[%emt 0:01:43] [#]} 12. f3 $146 {[%emt 0:01:38]} ({Predecessor:} 12. Qe1 Rc8 13. Kb1 a6 14. f4 exf4 15. Bxf4 Qb6 16. Be3 Qc6 17. Bd3 Rfe8 18. Bd4 {1-0 (63) Petrov,M (2521)-Lubbe,N (2427) Reykjavik 2021}) 12... Qa5 {[%emt 0:06:43]} 13. Qd2 {[%emt 0:09:53]} Rfd8 {[%emt 0:12:57]} 14. Kb1 {[%emt 0:00:56]} (14. Nb5 $5 {[%cal Rd2a5]} Qxd2+ 15. Rxd2 $11) 14... Kf8 {[%emt 0:00:59]} (14... Qc7 $11) 15. Bg5 {[%emt 0:03:39]} (15. Bd3 $14) 15... Rab8 $11 {[%emt 0:10:22]} 16. Be2 {[%emt 0:09:37]} b5 {[%emt 0:11:32]} 17. Bxf6 {[%emt 0:00:28]} Bxf6 {[%emt 0:00:08]} 18. Nd5 {[%emt 0:00:12] Prevents b4.} Qxd2 {[%emt 0:00:12]} 19. Rxd2 {[%emt 0:00:04]} Bg5 {[%emt 0:00:06]} 20. Rd3 {[%emt 0:01:32]} Bxd5 {[%emt 0:03:17]} 21. Rxd5 {[%emt 0:00:17]} b4 {[%emt 0:00:05]} 22. axb4 {[%emt 0:04:33]} Rxb4 {[%emt 0:00:07]} 23. c3 {[%emt 0:00:21]} Rbb8 {[%emt 0:04:13]} 24. Kc2 {[%emt 0:04:25]} Be3 {[%emt 0:00:31]} 25. Ra1 {[%emt 0:07:30]} Ke7 {[%emt 0:00:50]} 26. b4 {[%emt 0:01:52]} g6 {[%emt 0:04:02]} 27. g3 {[%emt 0:02:25]} Rd7 {[%emt 0:02:10]} 28. Ba6 {[%emt 0:03:04]} Rf8 {[%emt 0:32:36]} 29. Re1 {[%emt 0:06:22]} Bb6 {[%emt 0:00:00]} 30. f4 {[%emt 0:00:35]} f6 {[%emt 0:00:00]} 31. Rf1 {[%emt 0:05:51]} Rdd8 {[%emt 0:00:00]} 32. h4 {[%emt 0:10:03][%cal Bh2h4,Bh4h5][%mdl 32]} exf4 {[%emt 0:00:00]} 33. Rxf4 {[%emt 0:04:25]} h6 {[%emt 0:00:00]} 34. Rf1 {[%emt 0:02:16]} Rg8 {[%emt 0:00:00]} 35. Kd3 {[%emt 0:03:52]} g5 {[%emt 0:01:05]} (35... h5 $14) 36. h5 $16 {[%emt 0:01:03]} g4 {[%emt 0:00:40]} 37. Rdf5 {[%emt 0:01:29] Black must now prevent Bc4.} Rdf8 {[%emt 0:00:16]} 38. Bc4 {[%emt 0:00:48]} Rg5 {[%emt 0:00:05]} 39. Bd5 {[%emt 0:00:24]} Rg7 {[%emt 0:01:22]} 40. Bc6 {[%emt 0:00:00]} (40. c4 $142) 40... Rc8 {[%emt 0:00:00] [#]} (40... Rg5 $142) 41. e5 $1 {[%emt 0:18:27]} fxe5 {[%emt 0:05:43]} 42. Bd5 {[%emt 0:13:45]} a5 {[%emt 0:00:55]} 43. b5 {[%emt 0:00:00]} (43. Rf7+ $16 Rxf7 44. Rxf7+ Ke8 45. Rf6) 43... e4+ $1 $14 {[%emt 0:01:09]} 44. Bxe4 {[%emt 0:00:00] aiming for Rf6.} Rc5 $1 {[%emt 0:00:04]} 45. Rf8 {[%emt 0:00:00] And now Rb8 would win.} d5 {[%emt 0:04:59]} 46. Bg6 {[%emt 0:00:00] White is much more active.} Rxb5 {[%emt 0:00:37]} 47. Rb8 {[%emt 0:00:00]} (47. Re1+ $14 Kd6 48. Rf6+ (48. Be8 Rb2 $14) 48... Kc7 49. Ree6 (49. Be8 Rb2 $14)) 47... Kd6 $1 $11 {[%emt 0:00:39]} 48. Kc2 {[%emt 0:00:00] Strongly threatening Bd3.} a4 $132 {[%emt 0:01:48][%mdl 2048] Black is not holding back} 49. Be8 {[%emt 0:02:39]} Kc7 {[%emt 0:00:04] Hoping for ...Ra5.} 50. Bxb5 {[%emt 0:00:45] Rff8 is the strong threat.} Kxb8 {[%emt 0:00:04] KRB-KRB} 51. Rf6 {[%emt 0:00:22]} Be3 {[%emt 0:01:00]} 52. Bxa4 {[%emt 0:00:13]} Bg5 {[%emt 0:00:20]} 53. Rf5 {[%emt 0:00:59]} Re7 {[%emt 0:00:19]} 54. Rxd5 {[%emt 0:00:25]} Re3 {[%emt 0:00:05]} 55. Rd3 {[%emt 0:00:27]} Rxd3 {[%emt 0:00:05] Weighted Error Value: White=0.09 (flawless) /Black=0.10 (very precise)} 1/2-1/2

[Event "2nd Serbia Open Masters 2022"]
[Site "Novi Sad"]
[Date "2022.06.29"]
[Round "2.3"]
[White "Kamalidenova, Meruert"]
[Black "Jumabayev, Rinat"]
[Result "0-1"]
[ECO "C67"]
[WhiteElo "2408"]
[BlackElo "2628"]
[Annotator "TA"]
[PlyCount "161"]
[EventDate "2022.06.28"]
[EventType "swiss"]
[EventCountry "SRB"]
[SourceTitle "playchess.com"]
[Source "ChessBase"]
[SourceQuality "1"]
[TimeControl "40/5400+30:900+30"]

{[%evp 17,161,-2,-13,-79,-72,-83,-81,-77,-42,-73,-97,-223,-220,-209,-218,-211,-206,-215,-218,-216,-219,-233,-210,-218,-188,-237,-224,-254,-252,-309,-302,-302,-303,-248,-297,-292,-294,-228,-191,-169,-147,-155,-116,-164,-171,-198,-135,-138,-124,-137,-134,-133,-135,-570,-570,-674,-823,-783,-778,-814,-812,-786,-800,-787,-775,-1037,-1033,-1019,-1019,-1011,-991,-8969,-743,-738,-738,-738,-736,-710,-606,-1037,-935,-927,-316,-316,-157,-157,-157,-157,-157,-157,-157,-149,-50,-56,-45,-88,-88,-157,-157,-157,-157,-157,-157,-157,-157,-157,-157,-157,-45,-157,-157,-157,-157,-157,-157,-157,-157,-316,-316,-316,-47,-157,-157,-316,-157,-316,-316,-316,-316,-927,-885,-837,-49,-49,-51,-157,-45,-632,-316,-29977,-29978,-29977,-29979,-29977,-29978,-29988]} 1. e4 {[%emt 0:00:17]} e5 {[%emt 0:00:36]} 2. Nf3 {[%emt 0:00:21]} Nc6 {[%emt 0:00:06]} 3. Bb5 {[%emt 0:00:29]} Nf6 {[%emt 0:00:12]} 4. O-O {[%emt 0:05:46]} Nxe4 {[%emt 0:00:55]} 5. d4 {[%emt 0:04:52]} Nd6 {[%emt 0:00:09]} 6. dxe5 {[%emt 0:02:39]} Nxb5 {[%emt 0:00:13]} 7. a4 {[%emt 0:00:11]} d6 {[%emt 0:12:17]} 8. axb5 {[%emt 0:11:08]} Nxe5 {[%emt 0:03:08]} 9. Re1 {[%emt 0:00:32]} Be7 {[%emt 0:04:04]} 10. Nd4 {[%emt 0:07:34] C67: Ruy Lopez: Berlin Defence: 4 0-0 Nxe4.} (10. Nxe5 $11 dxe5 11. Qxd8+ Kxd8 12. Rxe5) 10... O-O $17 {[%emt 0:04:42] [#]} 11. Nc3 $146 {[%emt 0:00:46]} ({Predecessor:} 11. f4 Bg4 12. Qd2 Nc4 13. Qb4 Nb6 14. h3 Bd7 15. Ra3 Re8 16. c4 d5 17. c5 Nc4 18. Rd3 b6 19. Nb3 bxc5 20. Nxc5 Bxc5+ 21. Qxc5 {0-1 (21) Stepanovic,B (2002)-Sosna,J (2341) Slovakia 2016}) 11... Re8 {[%emt 0:14:27]} 12. Nd5 {[%emt 0:06:48] Black is better.} Bg4 {[%emt 0:06:37]} 13. f3 {[%emt 0:07:24]} Bh4 {[%emt 0:06:01]} 14. fxg4 {[%emt 0:07:24]} (14. Re2 $17 Bd7 15. Bd2) 14... Bxe1 $19 {[%emt 0:02:39]} 15. Qxe1 {[%emt 0:01:35] [#]} Nf3+ $1 {[%emt 0:05:04][%mdl 576] Discovered Attack} 16. Nxf3 {[%emt 0:01:03]} Rxe1+ $40 {[%emt 0:00:04][%mdl 128] Black has strong attack.} 17. Nxe1 {[%emt 0:00:09]} Qe8 {[%emt 0:00:21][%csl LRb5,LRe1][%cal Re8e1]} 18. Nf3 {[%emt 0:04:45]} Qxb5 {[%emt 0:00:56]} 19. Ne3 {[%emt 0:01:01]} a5 {[%emt 0:06:07]} 20. Kf2 {[%emt 0:02:45]} Re8 {[%emt 0:03:14]} 21. b3 {[%emt 0:03:04]} (21. c4 $142 Qb6 22. Ra4) 21... Qc5 {[%emt 0:05:22]} 22. Bd2 {[%emt 0:03:26]} b6 {[%emt 0:07:54]} 23. Ra4 {[%emt 0:03:24] [#]} Rxe3 $1 {[%emt 0:07:33][%mdl 512]} 24. Bxe3 {[%emt 0:01:08]} Qxc2+ {[%emt 0:00:04]} 25. Nd2 {[%emt 0:00:52]} d5 {[%emt 0:00:30] Inhibits Rc4.} 26. Rd4 {[%emt 0:07:59]} c6 {[%emt 0:00:11]} 27. Ke2 {[%emt 0:00:22]} Qc3 {[%emt 0:04:07]} 28. g5 {[%emt 0:02:34]} Kf8 {[%emt 0:05:17]} 29. h4 {[%emt 0:01:54]} Ke7 {[%emt 0:01:11]} 30. h5 {[%emt 0:01:19]} Ke6 {[%emt 0:00:36]} 31. Rf4 {[%emt 0:05:38]} c5 {[%emt 0:00:08]} (31... b5 $1 $19 {Threatens to win with ...c5.} 32. h6 gxh6) 32. h6 $17 {[%emt 0:00:12]} gxh6 {[%emt 0:00:33]} 33. Rf6+ {[%emt 0:00:48]} Kd7 {[%emt 0:00:34]} 34. Rxf7+ {[%emt 0:04:20]} Ke8 {[%emt 0:00:11] Chess con chili.} 35. Rb7 {[%emt 0:00:38][%mdl 8192]} (35. Rf5 $17) 35... d4 $19 {[%emt 0:00:36]} 36. Bf4 {[%emt 0:01:14]} hxg5 {[%emt 0:00:11]} 37. Bxg5 {[%emt 0:01:03]} Qg3 {[%emt 0:00:39][%csl LRg2,LRg5]} 38. Re7+ {[%emt 0:00:35]} Kf8 {[%emt 0:00:08]} 39. Ne4 {[%emt 0:00:07]} Qxg2+ {[%emt 0:00:45]} 40. Kd3 {[%emt 0:00:00]} Qf1+ {[%emt 0:00:00]} 41. Kd2 {[%emt 0:01:16]} a4 {[%emt 0:10:27]} 42. bxa4 {[%emt 0:06:08]} c4 {[%emt 0:00:09][%cal Oh7h6]} 43. Re6 {[%emt 0:00:20]} c3+ {[%emt 0:01:20]} 44. Nxc3 {[%emt 0:04:04]} Qg2+ {[%emt 0:00:22]} (44... dxc3+ $142 45. Kxc3 Qf3+ 46. Kd4 Qg4+ 47. Kd5 Qxg5+ 48. Re5 Qd2+ 49. Ke4 Qc2+ 50. Ke3 Qb3+ 51. Kf2 Qxa4) 45. Ne2 {[%emt 0:01:17]} Qxg5+ {[%emt 0:00:06][%mdl 4096] Endgame KQ-KRN} 46. Kd3 {[%emt 0:00:20]} h5 {[%emt 0:02:47][%cal Bh7h5,Bh5h4][%mdl 32]} 47. Nxd4 {[%emt 0:00:46]} h4 {[%emt 0:00:33]} 48. Rxb6 {[%emt 0:01:43] White threatens Ne6+ and mate.} Qg2 {[%emt 0:02:05]} 49. Rf6+ {[%emt 0:03:56]} Ke8 $2 {[%emt 0:00:58]} (49... Kg7 50. Rf4 h3) 50. Re6+ {[%emt 0:00:33]} Kd7 {[%emt 0:00:08]} (50... Kf7 $1 $19 {aiming for ...h3.} 51. Re2 Qd5) 51. Re2 $17 {[%emt 0:00:08]} Qf1 {[%emt 0:01:57]} 52. Ke3 {[%emt 0:00:41]} Qg1+ {[%emt 0:00:41]} 53. Ke4 {[%emt 0:00:57]} Qd1 {[%emt 0:00:50] And now ...h3 would win.} ({Not} 53... h3 $2 54. Nf3 Qg4+ 55. Ke3) 54. Ke3 {[%emt 0:00:58]} Qxa4 {[%emt 0:00:39]} ({Black should try} 54... Qc1+ $17 55. Ke4 Qb1+ 56. Ke3 Qg1+ 57. Kd3 Qg4) 55. Nf3 $1 $15 {[%emt 0:00:23]} Qa3+ {[%emt 0:00:36]} 56. Kf2 {[%emt 0:01:07]} Qc5+ {[%emt 0:00:16]} 57. Kg2 {[%emt 0:00:17]} Qf5 $1 {[%emt 0:00:18]} 58. Kf2 {[%emt 0:00:51]} Qf4 $1 {[%emt 0:01:01]} 59. Rd2+ {[%emt 0:00:33]} Ke6 {[%emt 0:00:34]} 60. Rd4 {[%emt 0:00:18]} Qg3+ {[%emt 0:00:03]} 61. Ke3 {[%emt 0:00:19]} h3 {[%emt 0:00:18] ...h2 is the strong threat.} 62. Re4+ {[%emt 0:00:41]} Kd7 {[%emt 0:01:02]} ({Black should play} 62... Kd5 $17 {Strongly threatening ...h2.} 63. Rd4+ Kc5) 63. Rd4+ {[%emt 0:00:07]} (63. Rg4 $1 $15 Qb8 64. Kf2) 63... Ke8 {[%emt 0:00:11]} 64. Rd2 {[%emt 0:00:23] Inhibits h2.} Ke7 {[%emt 0:00:13]} 65. Ke4 {[%emt 0:00:20]} Kf6 {[%emt 0:00:21]} 66. Ke3 {[%emt 0:00:08]} Kg6 {[%emt 0:00:33]} ({Don't blunder} 66... Kf5 $2 67. Rd5+ Kf6 68. Rd2 $19) 67. Ke4 $2 {[%emt 0:00:19]} (67. Rd8 $17 {might work better.} Qc7 68. Rd1) 67... Qc7 $1 $19 {[%emt 0:00:35]} 68. Ke3 {[%emt 0:00:58]} Kh5 $2 {[%emt 0:01:16]} (68... Qc3+ $19 69. Ke2 Kf5) 69. Rd5+ {[%emt 0:00:05]} (69. Rd4 $1 $15) 69... Kh6 $17 {[%emt 0:00:10]} 70. Rd2 $2 {[%emt 0:00:13] Against h2} (70. Rd4 $17 {was worth a try.}) 70... Qb8 {[%emt 0:00:38]} (70... Qc3+ $19 {has better winning chances.} 71. Ke2 Kh5) 71. Ke4 $2 {[%emt 0:00:39]} (71. Rd4 $17 {is a better defense.}) 71... Qb4+ $19 {[%emt 0:00:45]} 72. Ke3 {[%emt 0:00:33] [#]} Qc3+ $1 {[%emt 0:00:27]} 73. Rd3 $2 {[%emt 0:01:42]} (73. Ke2) 73... Qc5+ {[%emt 0:00:15]} 74. Ke4 {[%emt 0:00:47]} Qf2 $2 {[%emt 0:00:54]} (74... Qc2 $19 75. Ke3 h2 76. Rd6+ Kg7 77. Rd7+ Kf6 78. Nxh2 Qxh2) 75. Rd6+ $1 $15 {[%emt 0:00:24]} Kg7 {[%emt 0:00:10]} 76. Rd7+ {[%emt 0:00:25] [#]} ({White must play} 76. Kf4 $1 $15) 76... Kf6 {[%emt 0:00:30]} ({Better is} 76... Kf8 $1 $17 77. Rd8+ Ke7) 77. Rd6+ $2 {[%emt 0:00:22][%mdl 8192]} (77. Kf4 $15) 77... Ke7 {[%emt 0:00:08]} 78. Rd5 $2 {[%emt 0:00:48]} (78. Rh6 $19 Qg3 79. Ke3) 78... Qg2 {[%emt 0:00:45] Black mates.} 79. Re5+ {[%emt 0:00:32]} Kd6 {[%emt 0:00:12]} 80. Rd5+ {[%emt 0:00:19]} Kc6 {[%emt 0:00:11]} 81. Kd4 {[%emt 0:01:14] Weighted Error Value: White=0.45/Black=0.33} 0-1

[Event "2nd Serbia Open Masters 2022"]
[Site "Novi Sad"]
[Date "2022.06.29"]
[Round "2.4"]
[White "Motylev, Alexander"]
[Black "Song, Julien"]
[Result "1-0"]
[ECO "C00"]
[WhiteElo "2633"]
[BlackElo "2388"]
[Annotator "TA"]
[PlyCount "169"]
[EventDate "2022.06.28"]
[EventType "swiss"]
[EventCountry "SRB"]
[SourceTitle "playchess.com"]
[Source "ChessBase"]
[SourceQuality "1"]
[TimeControl "40/5400+30:900+30"]

{[%evp 21,169,-49,-38,-43,-39,-40,-29,-60,-48,-46,-48,-53,-58,-64,-62,-62,-50,-54,-43,-51,-31,-60,-57,-48,-18,-50,-39,-39,-38,-105,-64,-102,-71,-102,-106,-119,-117,-115,-116,-110,-114,-89,-92,-110,-44,-51,0,0,0,0,0,0,0,0,12,0,18,0,4,4,4,4,28,6,41,16,47,0,0,0,8,0,45,45,74,32,56,56,118,79,78,97,93,64,127,116,243,0,10,0,258,258,269,213,262,245,256,240,254,186,484,464,455,366,323,291,484,464,508,525,523,524,526,506,521,502,762,816,814,804,805,790,762,738,1007,986,1085,1093,1015,1007,998,1204,1165,1166,1092,1018,1612,1538,1479,1202,1160,1097,5506,3029,5131,5197,5019,3073,1690,1670]} 1. g3 {[%emt 0:01:31]} d5 {[%emt 0:01:27]} 2. Nf3 {[%emt 0:00:40]} Nf6 {[%emt 0:00:25]} 3. Bg2 {[%emt 0:00:07]} e6 {[%emt 0:00:23]} 4. O-O {[%emt 0:00:08]} Be7 {[%emt 0:00:14]} 5. d3 {[%emt 0:00:06]} O-O {[%emt 0:00:32]} 6. Nbd2 {[%emt 0:00:06]} c5 {[%emt 0:00:48]} 7. e4 {[%emt 0:00:17]} Nc6 {[%emt 0:00:55]} 8. Re1 {[%emt 0:00:08]} Qc7 {[%emt 0:03:18]} 9. Qe2 {[%emt 0:03:35]} b5 {[%emt 0:11:26]} 10. e5 {[%emt 0:01:25]} Nd7 {[%emt 0:02:54]} 11. Nf1 {[%emt 0:00:21]} Bb7 {[%emt 0:00:29]} 12. Bf4 {[%emt 0:01:12] C00: French: Unusual White 2nd moves.} Rfc8 {[%emt 0:01:12]} 13. h4 {[%emt 0:01:29]} Qd8 {[%emt 0:01:09]} 14. N1h2 {[%emt 0:03:17] Black has an edge.} a5 {[%emt 0:19:03]} 15. c3 {[%emt 0:06:21]} a4 {[%emt 0:03:29] [#]} 16. a3 $146 {[%emt 0:00:28]} ({Predecessor:} 16. h5 h6 17. Qe3 a3 18. b3 d4 19. cxd4 Nxd4 20. Nxd4 cxd4 21. Qe2 Bxg2 22. Kxg2 {0-1 (34) Reis,P (2377)-Lima,D (2535) Natal 2019}) 16... b4 {[%emt 0:11:13]} 17. Qc2 {[%emt 0:03:50]} bxc3 {[%emt 0:04:10]} 18. bxc3 {[%emt 0:00:41]} Ba6 {[%emt 0:00:23]} 19. Ng4 {[%emt 0:08:09]} Bf8 {[%emt 0:06:21]} (19... Rab8 {is more complex.} 20. h5 h6 21. c4 dxc4 22. dxc4 Nd4) 20. Bf1 {[%emt 0:24:32]} Ne7 {[%emt 0:11:03]} 21. c4 {[%emt 0:08:12]} Bb7 {[%emt 0:08:41]} 22. Bg2 {[%emt 0:04:35]} Nf5 {[%emt 0:00:47]} 23. Qe2 {[%emt 0:04:44]} Bc6 {[%emt 0:01:35]} 24. h5 {[%emt 0:02:50][%cal Oh5h6]} h6 {[%emt 0:00:44]} 25. Red1 {[%emt 0:04:17]} (25. Ne3 $1 $15 Nxe3 26. Bxe3) 25... Rab8 {[%emt 0:03:03]} 26. Ngh2 {[%emt 0:00:17]} Rb6 {[%emt 0:02:27]} 27. Rac1 {[%emt 0:06:26]} Rcb8 {[%emt 0:02:55]} 28. g4 {[%emt 0:01:47]} Nd4 {[%emt 0:00:23]} 29. Nxd4 {[%emt 0:00:26]} cxd4 {[%emt 0:00:02]} 30. cxd5 {[%emt 0:01:29]} Bxd5 {[%emt 0:00:02]} 31. Bxd5 {[%emt 0:00:18]} exd5 {[%emt 0:00:02]} 32. Nf3 {[%emt 0:01:04]} Bxa3 {[%emt 0:00:33]} (32... Nc5 $17 {And now ...Ne6 would win.} 33. Nxd4 Nb3 34. Nxb3 axb3) 33. Ra1 $1 $15 {[%emt 0:00:15]} Bc5 {[%emt 0:00:33]} (33... Qf8 $15) 34. Rxa4 $11 {[%emt 0:00:17]} Nf8 {[%emt 0:00:08]} 35. Ra2 {[%emt 0:03:51]} ({Avoid the trap} 35. Nxd4 $2 Qd7 36. Rda1 Rb1+ 37. Kg2 Rxa1 38. Rxa1 Bxd4 $19) 35... Ne6 {[%emt 0:00:25]} 36. Bg3 {[%emt 0:00:20]} Be7 {[%emt 0:01:55]} 37. Kg2 {[%emt 0:00:56]} Qd7 {[%emt 0:01:13]} 38. Rda1 {[%emt 0:00:36]} R6b7 {[%emt 0:01:02]} 39. Rc1 {[%emt 0:00:49]} Bg5 {[%emt 0:00:54]} 40. Nxg5 {[%emt 0:00:00]} hxg5 {[%emt 0:00:00]} 41. Qf3 {[%emt 0:02:50]} Rb3 {[%emt 0:14:54]} 42. Ra5 {[%emt 0:01:15]} Rc3 {[%emt 0:02:37]} 43. Rca1 {[%emt 0:00:30]} Rbc8 {[%emt 0:00:19]} 44. Rxd5 {[%emt 0:05:38]} (44. h6 $14 {might be stronger.}) 44... Qb7 {[%emt 0:00:06]} 45. Rd1 {[%emt 0:01:29][%cal Ba1d1,Bd1d2,Bd2a2][%mdl 32]} R8c5 {[%emt 0:00:37]} 46. Rd6 {[%emt 0:00:42]} Qxf3+ {[%emt 0:01:02]} 47. Kxf3 {[%emt 0:00:06]} Rb5 {[%emt 0:00:25]} 48. Rd2 {[%emt 0:06:54]} Kf8 {[%emt 0:00:38]} 49. Ke4 {[%emt 0:01:41]} Rcc5 {[%emt 0:00:23]} ({Black should try} 49... Rbb3 $14) 50. Ra2 {[%emt 0:04:04]} Ra5 {[%emt 0:00:02] Prevents Ra8+.} 51. Rb2 {[%emt 0:00:11] Threatens to win with Rb8+.} Rcb5 {[%emt 0:00:16] Inhibits Rb8+.} 52. Rb6 {[%emt 0:00:17]} Rxb2 {[%emt 0:00:18]} (52... Rxb6 $1 $14 53. Rxb6 Ra2) 53. Rxb2 $14 {[%emt 0:00:01][%mdl 4096] Endgame KRB-KRN} Ra4 {[%emt 0:01:19]} (53... Ra1 $16 54. f3 Rd1) 54. Kd5 $2 {[%emt 0:02:54]} (54. Rc2 $18) 54... Ra5+ $11 {[%emt 0:00:16]} 55. Ke4 $2 {[%emt 0:00:07]} (55. Kc6 $11) 55... Ra4 $1 $18 {[%emt 0:00:03] Black is on the road to losing.} 56. Rc2 {[%emt 0:02:07] Prevents Nc5+.} Ke7 {[%emt 0:00:28]} 57. f3 {[%emt 0:00:11] aiming for Bf2.} Ra1 {[%emt 0:00:19]} 58. Bf2 {[%emt 0:00:14]} Rf1 {[%emt 0:01:07]} 59. Ra2 {[%emt 0:00:23]} (59. Bxd4 Nxd4 60. Kxd4 Rxf3 $16) 59... Kd7 {[%emt 0:00:41]} 60. Kd5 {[%emt 0:00:36]} Nf4+ $2 {[%emt 0:00:48]} (60... Ke7 61. Rc2 (61. Bxd4 Rxf3 62. Ra7+ Kf8 $14) 61... Rd1) 61. Kxd4 {[%emt 0:00:23]} Rd1 {[%emt 0:00:11]} 62. Ra3 {[%emt 0:00:34]} Rf1 {[%emt 0:00:12]} 63. Ke3 {[%emt 0:01:10]} Ke6 $2 {[%emt 0:00:03]} (63... Ng2+ 64. Ke2 Rb1) 64. d4 {[%emt 0:00:16] White is clearly winning.} Nh3 {[%emt 0:00:30]} 65. Ra6+ {[%emt 0:00:38]} Kd5 {[%emt 0:00:13]} 66. Ra5+ {[%emt 0:00:47]} Kc4 {[%emt 0:00:14]} 67. Rc5+ {[%emt 0:00:19]} Kb4 {[%emt 0:00:02]} 68. Bg3 {[%emt 0:00:48] Black must now prevent Rc7.} Rg1 {[%emt 0:00:11] [#]} (68... Ng1 $142 69. Bf2 Nh3) 69. e6 $1 {[%emt 0:00:11]} fxe6 {[%emt 0:00:40]} 70. Bd6 {[%emt 0:00:03]} Kb3 {[%emt 0:00:20]} 71. Rc7 {[%emt 0:00:54]} Re1+ {[%emt 0:00:40]} 72. Kd2 {[%emt 0:00:05]} Rf1 {[%emt 0:00:20]} 73. Ke2 {[%emt 0:00:41]} Rf2+ {[%emt 0:01:15]} 74. Ke3 {[%emt 0:00:02]} Rf1 {[%emt 0:00:15]} 75. Rxg7 {[%emt 0:00:18]} Kc2 {[%emt 0:00:28]} 76. Rc7+ {[%emt 0:01:17]} Kd1 {[%emt 0:00:03]} 77. Bg3 {[%emt 0:00:37] h6 is the strong threat.} Ng1 {[%emt 0:01:21]} 78. Bf2 {[%emt 0:00:24]} Nh3 {[%emt 0:00:13] [#]} 79. Ra7 $1 {[%emt 0:00:37]} Kc2 {[%emt 0:00:41]} 80. Bg3 {[%emt 0:00:24]} Ng1 {[%emt 0:00:26]} 81. Rf7 {[%emt 0:00:28]} Kd1 {[%emt 0:01:02]} 82. h6 {[%emt 0:00:24] Intending h7 and mate.} Ne2 {[%emt 0:00:21]} 83. h7 {[%emt 0:00:31]} Rh1 {[%emt 0:01:25]} 84. Be5 {[%emt 0:00:28]} Re1 {[%emt 0:00:02]} 85. Kd3 {[%emt 0:00:14] Weighted Error Value: White=0.21 (precise) /Black=0.22 (precise)} ({Weaker is} 85. h8=Q Nf4+ 86. Kf2 Re2+ 87. Kg1 Re1+ 88. Kf2 Re2+ 89. Kg1 Re1+ 90. Kh2 Re2+ 91. Kh1 Re1+ 92. Kh2 Re2+ 93. Kh1 Re1+ 94. Kh2 $11) 1-0